bitfinex-derivatives/quotes_BNBF0:USTF0_20250305
["timestamp","ask_amount","ask_price","bid_price","bid_amount"]
[1741172498264,3.77278534,603.23,601.7,0.33239155]
[1741172498464,2.5944075,603.22,601.7,0.33239155]
[1741172498765,0.28875115,603.24,601.7,0.33239155]
[1741172498958,0.94374634,603.23,601.7,0.33239155]
[1741172499163,0.94374634,603.22,601.7,0.33239155]
[1741172499360,0.94326979,603.21,601.7,0.33239155]
[1741172499561,0.28875115,603.24,601.7,0.33239155]
[1741172499762,0.9432623,603.23,601.7,0.33239155]
[1741172499961,0.33152651,603.27,601.7,0.33239155]
[1741172501864,6.72706637,603.79,601.7,0.33239155]
[1741172502168,7.55556364,603.78,601.7,0.33239155]
[1741172502370,7.55556912,603.77,601.7,0.33239155]
[1741172502565,4.9226637,603.76,601.7,0.33239155]
[1741172502764,4.42541839,603.75,601.7,0.33239155]
[1741172502968,4.42542388,603.74,601.7,0.33239155]
[1741172503163,5.54849624,603.73,601.7,0.33239155]
[1741172503365,7.05532397,603.72,601.7,0.33239155]
[1741172503570,7.05318119,603.71,601.7,0.33239155]
[1741172503770,7.55037823,603.7,601.7,0.33239155]
[1741172504070,7.05319217,603.69,601.7,0.33239155]
[1741172504270,7.05319766,603.68,601.7,0.33239155]
[1741172504569,1.17540034,603.69,601.7,0.33239155]
[1741172504570,7.05320314,603.67,601.7,0.33239155]
[1741172504769,4.42546778,603.66,601.7,0.33239155]
[1741172504965,5.60087361,603.65,601.7,0.33239155]
[1741172505166,2.9132046,603.64,601.7,0.33239155]
[1741172505470,1.27309269,603.63,601.7,0.33239155]
[1741172505666,1.27309818,603.62,601.7,0.33239155]
[1741172505864,0.9417639,603.61,601.7,0.33239155]
[1741172506462,0.9417639,603.61,601.83,1.21098633]
[1741172506669,2.57697908,603.6,601.83,1.21098633]
[1741172506869,4.0777468,603.59,601.85,0.33230871]
[1741172507070,7.19732735,603.58,601.85,0.33230871]
[1741172507270,0.33136722,603.56,601.85,0.33230871]
[1741172507472,2.57697908,603.55,601.85,0.33230871]
[1741172507669,0.33138369,603.53,601.85,0.33230871]
[1741172507871,2.57697908,603.52,601.85,0.33230871]
[1741172508070,2.57697908,603.51,601.85,0.33230871]
[1741172508266,2.57697908,603.5,601.85,0.33230871]
[1741172508571,2.57697908,603.49,601.85,0.33230871]
[1741172508770,2.57697908,603.48,601.85,0.33230871]
[1741172508966,3.74810267,603.47,601.85,0.33230871]
[1741172509170,4.40916893,603.46,601.85,0.33230871]
[1741172509472,5.52973474,603.45,601.85,0.33230871]
[1741172509670,6.70086382,603.44,601.85,0.33230871]
[1741172509971,7.02999386,603.43,601.85,0.33230871]
[1741172510172,7.02999936,603.42,601.85,0.33230871]
[1741172510373,7.03000485,603.41,601.85,0.33230871]
[1741172510573,4.4086823,603.4,601.85,0.33230871]
[1741172510774,4.4086878,603.39,601.85,0.33230871]
[1741172510973,4.40869329,603.38,601.85,0.33230871]
[1741172511173,4.40869878,603.37,601.85,0.33230871]
[1741172511373,2.57697908,603.36,601.85,0.33230871]
[1741172511568,2.57697908,603.35,601.85,0.33230871]
[1741172511772,2.57697908,603.34,601.85,0.33230871]
[1741172511974,2.57697908,603.33,601.85,0.33230871]
[1741172512175,3.74810267,603.32,601.85,0.33230871]
[1741172512373,1.17112359,603.32,601.85,0.33230871]
[1741172512578,0.93734323,603.31,601.85,0.33230871]
[1741172512873,0.93734323,603.3,601.85,0.33230871]
[1741172513074,0.28867929,603.33,601.85,0.33230871]
[1741172513275,0.9373255,603.32,601.85,0.33230871]
[1741172513582,0.9373255,603.31,601.85,0.33230871]
[1741172513781,0.9373255,603.3,601.85,0.33230871]
[1741172513977,0.28867929,603.33,601.85,0.33230871]
[1741172514283,0.93725767,603.32,601.85,0.33230871]
[1741172514476,0.93725767,603.31,601.85,0.33230871]
[1741172514677,0.93725767,603.3,601.85,0.33230871]
[1741172514876,0.93725767,603.29,601.85,0.33230871]
[1741172515082,3.13718899,603.36,601.85,0.33230871]
[1741172515284,4.0743913,603.35,601.85,0.33230871]
[1741172515479,6.69469062,603.34,601.85,0.33230871]
[1741172515685,6.69469062,603.33,601.86,1.21098633]
[1741172515885,7.19209363,603.32,601.88,0.33229215]
[1741172516183,7.19209363,603.31,601.88,0.33229215]
[1741172516385,8.69366592,603.3,601.88,0.33229215]
[1741172516583,7.52360915,603.29,601.88,0.33229215]
[1741172516783,7.02624083,603.28,601.88,0.33229215]
[1741172516979,8.1963086,603.27,601.88,0.33229215]
[1741172517177,4.0743913,603.26,601.88,0.33229215]
[1741172517376,4.4059288,603.25,601.88,0.33229215]
[1741172517579,6.07346633,603.24,601.88,0.33229215]
[1741172517779,4.40593979,603.23,601.88,0.33229215]
[1741172518083,2.90636777,603.22,601.88,0.33229215]
[1741172518275,0.93720231,603.21,601.88,0.33229215]
[1741172518482,1.26876729,603.2,601.88,0.33229215]
[1741172518679,1.26877279,603.19,601.88,0.33229215]
[1741172518878,0.93720231,603.18,601.88,0.33229215]
[1741172519079,0.93720231,603.17,601.88,0.33229215]
[1741172519381,0.93720231,603.16,601.88,0.33229215]
[1741172519588,0.28874037,603.17,601.88,0.33229215]
[1741172520578,0.33157048,603.19,601.88,0.33229215]
[1741172523181,0.93902657,603.18,602.01,1.21098633]
[1741172523385,0.93902657,603.17,602.01,1.21098633]
[1741172523687,0.93902657,603.16,602.01,1.21098633]
[1741172523887,0.93902657,603.15,602.01,1.21098633]
[1741172524088,0.93902657,603.14,602.01,1.21098633]
[1741172524287,0.93902657,603.13,602.01,1.21098633]
[1741172524486,0.28871043,603.15,602.01,1.21098633]
[1741172524684,0.94012993,603.14,602.01,1.21098633]
[1741172524880,0.28871043,603.15,602.01,1.21098633]
[1741172525386,0.28871043,603.15,601.91,0.28871043]
[1741172525387,0.6203029,603.15,601.91,0.28871043]
[1741172526388,0.33159797,603.14,601.91,0.28871043]
[1741172529888,0.33159797,603.14,601.92,0.33227006]
[1741172530487,0.94098465,603.13,601.92,0.33227006]
[1741172530889,0.33160896,603.12,601.92,0.33227006]
[1741172531291,0.6203697,603.12,601.92,0.33227006]
[1741172531491,2.59053559,603.11,601.92,0.33227006]
[1741172531691,0.94098465,603.1,601.92,0.33227006]
[1741172531888,0.94098465,603.09,601.92,0.33227006]
[1741172532092,0.94098465,603.08,601.92,0.33227006]
[1741172532289,1.64955094,603.09,601.92,0.33227006]
[1741172532290,6.74979516,603.07,601.92,0.33227006]
[1741172532486,6.74979516,603.06,601.92,0.33227006]
[1741172532688,6.74979516,603.05,601.92,0.33227006]
[1741172532891,7.92448904,603.04,601.92,0.33227006]
[1741172533090,6.74979516,603.03,601.92,0.33227006]
[1741172533291,6.74979516,603.02,601.92,0.33227006]
[1741172533489,7.92448904,603.01,601.92,0.33227006]
[1741172533691,6.74979516,603.0,601.92,0.33227006]
[1741172533889,7.92614624,602.99,601.92,0.33227006]
[1741172534092,6.75145236,602.98,601.92,0.33227006]
[1741172534289,0.33160896,603.12,601.92,0.33227006]
[1741172534290,7.92614624,602.97,601.92,0.33227006]
[1741172534497,6.75145236,602.96,601.92,0.33227006]
[1741172534699,6.75274183,602.95,601.92,0.33227006]
[1741172534899,6.75274183,602.94,601.92,0.33227006]
[1741172535097,6.76663426,602.93,601.92,0.33227006]
[1741172535399,7.26434419,602.92,601.92,0.33227006]
[1741172535699,7.26559178,602.91,601.92,0.33227006]
[1741172535901,7.26559178,602.9,601.92,0.33227006]
[1741172536097,7.26559178,602.89,601.92,0.33227006]
[1741172536294,7.26559178,602.88,601.72,1.21098633]
[1741172536497,7.26559178,602.87,601.72,1.21098633]
[1741172536698,6.76786895,602.86,601.91,0.28885781]
[1741172536898,6.76786895,602.85,601.72,1.21098633]
[1741172537198,6.76786895,602.84,601.72,1.21098633]
[1741172537399,7.26563827,602.83,601.72,1.21098633]
[1741172537602,6.76786895,602.82,601.72,1.21098633]
[1741172537798,6.76786895,602.81,601.73,0.28887699]
[1741172537996,7.94256283,602.8,601.73,0.28887699]
[1741172538200,6.76786895,602.79,601.73,0.28887699]
[1741172538499,6.76786895,602.78,601.73,0.28887699]
[1741172538700,4.30342985,602.77,601.73,0.28887699]
[1741172538901,6.7705131,602.76,601.73,0.28887699]
[1741172539096,6.7705131,602.75,601.48,1.21098633]
[1741172539303,8.44306098,602.74,601.48,1.21098633]
[1741172539499,7.2683671,602.73,601.48,1.21098633]
[1741172539700,7.2683671,602.72,601.48,1.21098633]
[1741172540001,7.26839347,602.71,601.48,1.21098633]
[1741172540197,7.26840989,602.7,601.49,0.28895135]
[1741172540403,3.77870353,602.69,601.49,0.28895135]
[1741172540703,2.60400965,602.68,601.49,0.28895135]
[1741172540901,2.60400965,602.67,601.49,0.28895135]
[1741172541096,2.60400965,602.66,601.49,0.28895135]
[1741172541298,1.65721119,602.65,601.49,0.28895135]
[1741172541500,0.94887817,602.66,601.49,0.28895135]
[1741172542004,2.60608207,602.69,601.49,0.28895135]
[1741172542201,2.60608207,602.68,601.49,0.28895135]
[1741172542401,2.60608207,602.67,601.49,0.28895135]
[1741172542704,3.78038056,602.66,601.49,0.28895135]
[1741172543003,2.60568668,602.65,601.49,0.28895135]
[1741172543206,0.94887817,602.65,601.49,0.28895135]
[1741172543404,2.60509691,602.69,601.49,0.28895135]
[1741172543697,3.78870959,602.68,601.49,0.28895135]
[1741172543904,2.60509691,602.67,601.49,0.28895135]
[1741172544206,0.94887817,602.66,601.49,0.28895135]
[1741172544400,0.94773691,602.65,601.49,0.28895135]
[1741172544602,0.94773691,602.66,601.49,0.28895135]
[1741172544798,0.94773691,602.65,601.49,0.28895135]
[1741172545002,0.94773691,602.67,601.5,0.719]
[1741172545202,0.94773691,602.66,601.5,0.719]
[1741172545402,0.28898734,602.64,601.5,0.719]
[1741172545903,1.47260002,602.64,601.5,0.719]
[1741172546098,2.42033693,602.64,601.5,0.719]
[1741172546304,1.47260002,602.64,601.51,0.274]
[1741172546500,0.28898734,602.64,601.51,0.274]
[1741172547497,0.94701474,602.63,601.51,0.274]
[1741172547696,0.28898734,602.64,601.51,0.274]
[1741172547697,2.60134402,602.62,601.51,0.274]
[1741172547900,2.60134402,602.61,601.51,0.274]
[1741172548101,2.60134402,602.6,601.51,0.274]
[1741172548307,2.60064038,602.59,601.51,0.274]
[1741172548506,2.60064038,602.58,601.51,0.274]
[1741172548706,2.60064038,602.57,601.51,0.274]
[1741172548906,2.60064038,602.56,601.51,0.274]
[1741172549107,2.60064038,602.55,601.51,0.274]
[1741172549305,0.9463111,602.54,601.51,0.274]
[1741172549506,0.94584633,602.53,601.51,0.274]
[1741172549707,0.94584633,602.54,601.51,0.274]
[1741172549900,0.94584633,602.53,601.51,0.274]
[1741172550105,0.94584694,602.55,601.51,0.274]
[1741172550408,0.94584694,602.54,601.51,0.274]
[1741172550607,0.94584694,602.53,601.51,0.274]
[1741172550805,0.28899334,602.56,601.51,0.274]
[1741172551306,1.18043617,602.68,601.51,0.274]
[1741172551507,1.46936832,602.68,601.51,0.60649655]
[1741172551708,0.28893215,602.68,601.51,0.60649655]
[1741172553004,0.28893215,602.68,601.52,0.33249102]
[1741172553712,4.10674825,602.82,601.52,0.33249102]
[1741172554010,0.28888898,602.78,601.52,0.33249102]
[1741172554713,1.23349014,602.78,601.52,0.33249102]
[1741172555009,0.28888898,602.78,601.52,0.33249102]
[1741172557008,3.77328528,602.91,601.52,0.33249102]
[1741172557210,0.94432548,602.9,601.52,0.33249102]
[1741172557407,0.94432548,602.89,601.52,0.33249102]
[1741172557605,0.94432548,602.88,601.52,0.33249102]
[1741172557811,7.24165732,603.09,601.52,0.33249102]
[1741172558005,7.57328828,603.08,601.52,0.33249102]
[1741172558208,0.288871,602.87,601.52,0.33249102]
[1741172558606,7.24165732,603.05,601.52,0.33249102]
[1741172558810,7.57331027,603.04,601.52,0.33249102]
[1741172559006,7.57331577,603.03,601.52,0.33249102]
[1741172559314,8.75208412,603.02,601.52,0.33249102]
[1741172559510,7.07561852,603.01,601.52,0.33249102]
[1741172559712,7.07562402,603.0,601.52,0.33249102]
[1741172560012,4.43631752,602.99,601.52,0.33249102]
[1741172560312,4.10463707,602.98,601.52,0.33249102]
[1741172560511,2.59389548,602.97,601.52,0.33249102]
[1741172560811,2.59389548,602.96,601.52,0.33249102]
[1741172561012,2.59389548,602.95,601.52,0.33249102]
[1741172561311,3.77265833,602.94,601.52,0.33249102]
[1741172561511,2.59389548,602.93,601.52,0.60649102]
[1741172561706,0.94432548,602.92,601.52,0.60649102]
[1741172561912,0.94432548,602.91,601.52,0.60649102]
[1741172562110,0.94432548,602.9,601.52,0.60649102]
[1741172562311,2.59451038,602.93,601.52,0.60649102]
[1741172562512,0.94432548,602.92,601.52,0.60649102]
[1741172562713,5.23667706,602.91,601.52,0.60649102]
[1741172562914,6.74797064,602.9,601.52,1.81747735]
[1741172563207,7.92715488,602.89,601.52,1.81747735]
[1741172563415,6.74797064,602.88,601.52,1.81747735]
[1741172563614,6.74797064,602.87,601.52,1.81747735]
[1741172563915,5.28570845,602.86,601.52,1.81747735]
[1741172564115,6.74939662,602.85,601.52,1.81747735]
[1741172564315,4.10652421,602.84,601.52,1.81747735]
[1741172564517,2.59523063,602.83,601.52,1.81747735]
[1741172564713,1.17918424,602.83,601.52,1.81747735]
[1741172565015,5.29046009,602.82,601.52,1.81747735]
[1741172565215,2.59804926,602.81,601.7,1.21098633]
[1741172565514,3.7772335,602.8,601.71,0.33238603]
[1741172565715,2.59894888,602.79,601.71,0.33238603]
[1741172565910,2.59894888,602.78,601.71,0.33238603]
[1741172566108,0.94637926,602.77,601.71,0.33238603]
[1741172566314,0.94637926,602.76,601.71,0.33238603]
[1741172566513,4.65797367,602.89,601.71,0.33238603]
[1741172566711,7.2588955,602.88,601.73,1.21098633]
[1741172566913,8.44091825,602.87,601.73,1.21098633]
[1741172567111,7.2588955,602.86,601.73,1.21098633]
[1741172567411,7.2588955,602.85,601.73,1.21098633]
[1741172567618,7.2588955,602.84,601.73,1.21098633]
[1741172567810,8.44091825,602.83,601.73,1.21098633]
[1741172568016,7.2588955,602.82,601.71,0.33238603]
[1741172568216,7.2588955,602.81,601.71,0.33238603]
[1741172568418,7.2588955,602.8,601.71,0.33238603]
[1741172568615,7.2588955,602.79,601.71,0.33238603]
[1741172568919,8.24090078,602.78,601.71,0.33238603]
[1741172569218,0.28884222,602.9,601.71,0.33238603]
[1741172569219,9.42292353,602.77,601.71,0.33238603]
[1741172569521,0.98200528,602.75,601.71,0.33238603]
[1741172569711,0.98200528,602.73,601.59,0.28884222]
[1741172569912,7.2588955,602.72,601.59,0.28884222]
[1741172570117,8.24090078,602.71,601.59,0.28884222]
[1741172570318,0.98364795,602.66,601.64,1.21098633]
[1741172570521,7.26183757,602.65,601.64,1.21098633]
[1741172570817,7.26183757,602.64,601.64,1.21098633]
[1741172571018,7.26183757,602.63,601.64,1.21098633]
[1741172571317,0.98364795,602.54,601.64,1.21098633]
[1741172571517,0.98364795,602.52,601.64,1.21098633]
[1741172571719,7.26183757,602.51,601.64,1.21098633]
[1741172571916,7.26183757,602.5,601.64,1.21098633]
[1741172572115,6.76895356,602.49,601.64,1.21098633]
[1741172572315,1.18202275,602.53,601.64,1.21098633]
[1741172572316,6.76878392,602.48,601.64,1.21098633]
[1741172572517,4.11995158,602.47,601.64,1.21098633]
[1741172572713,3.78546642,602.46,601.64,1.21098633]
[1741172572918,2.60344367,602.45,601.64,1.21098633]
[1741172573217,3.78546642,602.44,601.64,1.21098633]
[1741172573415,2.60344367,602.43,601.6,0.28899814]
[1741172573615,3.78546642,602.42,601.6,0.28899814]
[1741172573809,0.94781744,602.41,601.6,0.28899814]
[1741172574014,6.31924217,602.66,601.6,0.28899814]
[1741172574313,7.59889942,602.65,601.6,0.28899814]
[1741172574512,7.59890493,602.64,601.6,0.28899814]
[1741172574710,7.59891043,602.63,601.6,0.28899814]
[1741172574911,0.98364795,602.7,601.6,0.28899814]
[1741172574912,8.78232941,602.62,601.6,0.28899814]
[1741172575118,7.59892145,602.61,601.52,0.274]
[1741172575418,7.59892696,602.6,601.6,0.28902454]
[1741172575617,7.59889534,602.59,601.52,0.274]
[1741172575817,6.7689603,602.58,601.52,0.274]
[1741172576117,7.10087194,602.57,601.52,0.274]
[1741172576314,7.10087745,602.56,601.52,0.274]
[1741172576518,7.10088296,602.55,601.52,0.274]
[1741172576714,8.28430194,602.54,601.52,0.274]
[1741172576917,7.5989334,602.53,601.53,0.28905335]
[1741172577117,7.26699973,602.52,601.53,0.28905335]
[1741172577318,7.26699586,602.51,601.53,0.28905335]
[1741172577515,6.7689603,602.5,601.53,0.28905335]
[1741172577720,6.7689603,602.49,601.53,0.28905335]
[1741172577918,6.7689603,602.48,601.52,0.274]
[1741172578117,6.7689603,602.47,601.52,0.274]
[1741172578318,6.7689603,602.46,601.53,0.28906295]
[1741172578516,3.78684046,602.45,601.53,0.28906295]
[1741172578721,4.12068672,602.44,601.53,0.28906295]
[1741172578921,3.78684046,602.43,601.53,0.28906295]
[1741172579220,2.60342699,602.42,601.53,0.28906295]
[1741172579421,3.78684046,602.41,601.53,0.28906295]
[1741172579623,2.60342699,602.4,601.53,0.28906295]
[1741172579822,2.60342699,602.39,601.53,0.28906295]
[1741172580017,2.60342699,602.38,601.53,0.28906295]
[1741172580222,2.60342699,602.37,601.53,0.28906295]
[1741172580420,5.30460128,602.36,601.53,0.28906295]
[1741172580624,4.12118781,602.35,601.53,0.28906295]
[1741172580824,3.78684046,602.34,601.53,0.28906295]
[1741172581018,2.60342699,602.33,601.53,0.28906295]
[1741172581323,3.78806367,602.32,601.53,0.28906295]
[1741172581523,2.6046502,602.31,601.53,0.28906295]
[1741172581720,2.6046502,602.3,601.53,0.28906295]
[1741172581922,2.6046502,602.29,601.53,0.28906295]
[1741172582225,0.94935925,602.28,601.53,0.28906295]
[1741172582421,4.66973893,602.47,601.53,0.47806295]
[1741172582626,8.46199223,602.46,601.53,0.47806295]
[1741172582920,6.77887537,602.45,601.53,0.47806295]
[1741172583123,6.77887537,602.44,601.53,0.47806295]
[1741172583423,7.96387449,602.43,601.53,0.47806295]
[1741172583626,2.60725418,602.42,601.53,0.47806295]
[1741172583822,2.60725418,602.41,601.53,0.47806295]
[1741172584022,3.7922533,602.4,601.53,0.47806295]
[1741172584223,1.18499912,602.4,601.53,0.47806295]
[1741172584526,0.28906295,602.48,601.53,0.47806295]
[1741172584721,0.33193367,602.53,601.53,0.47806295]
[1741172584922,2.60775531,602.52,601.53,0.47806295]
[1741172585123,2.60775531,602.51,601.53,0.47806295]
[1741172585319,2.60775531,602.5,601.53,0.47806295]
[1741172585523,3.79295858,602.49,601.53,0.47806295]
[1741172585727,1.18520327,602.49,601.53,1.33906295]
[1741172586243,0.33193367,602.53,601.53,1.33906295]
[1741172586428,2.60902271,602.52,601.53,1.33906295]
[1741172586628,2.60902166,602.51,601.53,1.33906295]
[1741172586830,2.13555174,602.5,601.53,1.33906295]
[1741172587032,2.13555174,602.5,601.53,1.05]
[1741172587033,0.94981516,602.49,601.53,1.05]
[1741172587227,1.18573658,602.49,601.53,1.05]
[1741172587429,0.33193367,602.53,601.53,1.05]
[1741172587626,2.60957876,602.52,601.53,1.05]
[1741172587830,3.79560992,602.51,601.53,1.324]
[1741172588027,2.60957876,602.5,601.53,1.324]
[1741172588229,3.79588102,602.49,601.53,1.61296814]
[1741172588434,1.18603116,602.49,601.53,1.61296814]
[1741172588828,1.18603116,602.48,601.53,1.61296814]
[1741172589127,0.33193367,602.53,601.53,1.61296814]
[1741172589335,2.61046791,602.52,601.53,1.61296814]
[1741172589632,3.79731679,602.51,601.53,1.61296814]
[1741172589832,2.61047869,602.5,601.53,1.61296814]
[1741172590033,2.1375343,602.49,601.53,1.61296814]
[1741172590226,1.18684888,602.49,601.53,1.61296814]
[1741172590930,1.18684888,602.48,601.53,1.61296814]
[1741172591127,0.33193367,602.53,601.53,1.61296814]
[1741172591433,2.6111461,602.52,601.53,1.61296814]
[1741172591636,2.6111461,602.51,601.53,1.61296814]
[1741172591835,2.6111461,602.5,601.53,1.61296814]
[1741172592028,1.18763619,602.52,601.53,1.61296814]
[1741172592232,3.79904195,602.51,601.53,1.61296814]
[1741172592536,8.80790954,602.5,601.53,1.61296814]
[1741172592836,7.12220204,602.49,601.53,1.61296814]
[1741172593031,7.28833847,602.48,601.53,1.324]
[1741172593229,7.6203052,602.47,601.53,1.324]
[1741172593431,7.28833847,602.46,601.53,1.324]
[1741172593631,8.27567565,602.45,601.53,1.324]
[1741172593935,0.98733718,602.42,601.53,1.324]
[1741172594127,7.28833847,602.41,601.53,1.324]
[1741172594330,0.98733718,602.38,601.53,1.324]
[1741172594533,8.27567565,602.37,601.53,1.324]
[1741172594734,9.46331184,602.36,601.53,1.324]
[1741172595034,0.98733718,602.32,601.53,1.324]
[1741172595234,8.27567565,602.31,601.53,1.324]
[1741172595430,0.98733718,602.24,601.53,1.324]
[1741172595633,7.28833847,602.3,601.53,1.324]
[1741172595634,7.28833847,602.23,601.53,1.324]
[1741172595833,7.28833847,602.22,601.53,1.324]
[1741172596033,7.28833847,602.21,601.53,1.324]
[1741172596235,8.47597466,602.2,601.53,1.324]
[1741172596432,7.28833847,602.19,601.53,1.324]
[1741172596632,7.28833847,602.18,601.53,1.324]
[1741172596828,7.28833847,602.17,601.53,1.324]
[1741172597135,7.6204761,602.16,601.53,1.324]
[1741172597334,7.62048162,602.15,601.53,1.324]
[1741172597535,7.28833847,602.14,601.53,1.324]
[1741172597733,7.62049265,602.13,601.53,1.324]
[1741172597935,7.12240603,602.12,601.53,1.324]
[1741172598135,8.31004773,602.11,601.53,1.324]
[1741172598336,6.79024633,602.1,601.53,1.324]
[1741172598532,6.79024633,602.09,601.53,1.324]
[1741172598730,6.79024633,602.08,601.53,1.324]
[1741172598931,6.79024633,602.07,601.53,1.324]
[1741172599131,6.79024633,602.06,601.53,1.324]
[1741172599436,6.79024633,602.05,601.53,0.463]
[1741172599637,6.79024633,602.04,601.53,0.463]
[1741172599832,7.97788252,602.03,601.53,0.463]
[1741172600032,2.61140576,602.02,601.53,0.463]
[1741172600236,6.78145931,602.01,601.53,0.463]
[1741172600431,0.28917825,602.07,601.53,0.463]
[1741172600432,4.12974474,602.0,601.53,0.463]
[1741172600631,2.61140576,601.99,601.53,0.463]
[1741172600837,2.61140576,601.98,601.53,0.463]
[1741172601037,3.79904195,601.97,601.53,0.463]
[1741172601337,2.60794256,601.96,601.53,0.463]
[1741172601537,0.95139252,601.95,601.53,0.463]
[1741172601732,1.18763619,601.96,601.53,0.463]
[1741172602138,1.18763619,602.06,601.53,0.463]
[1741172602338,0.28917825,602.07,601.53,0.463]
[1741172602742,0.94812807,602.06,601.53,1.21]
[1741172602939,0.28917825,602.07,601.53,1.21]
[1741172603334,0.94790624,602.06,601.53,1.21]
[1741172603538,0.28917825,602.07,601.53,1.21]
[1741172603738,0.94792325,602.06,601.53,1.21]
[1741172603942,0.28917825,602.07,601.53,1.21]
[1741172604140,0.94790905,602.06,601.53,1.21]
[1741172604341,0.28917825,602.07,601.53,1.21]
[1741172604643,0.94767764,602.06,601.53,1.21]
[1741172604836,0.28917825,602.07,601.53,1.21]
[1741172605141,0.33216521,602.11,601.53,1.21]
[1741172605340,0.28913861,602.09,601.53,1.21]
[1741172605534,3.78514096,602.08,601.53,1.21]
[1741172605738,0.28913861,602.09,601.53,1.21]
[1741172605739,0.94746225,602.07,601.53,1.21]
[1741172605936,0.28913861,602.09,601.53,1.21]
[1741172606142,0.9474676,602.08,601.53,1.21]
[1741172606442,0.9474676,602.07,601.53,1.21]
[1741172606642,0.33216521,602.11,601.53,1.21]
[1741172607439,2.60123189,602.1,601.53,1.21]
[1741172607643,2.60123189,602.09,601.53,1.21]
[1741172607842,0.94708758,602.08,601.53,1.21]
[1741172608144,0.94708758,602.07,601.53,1.21]
[1741172608345,0.33216521,602.11,601.53,1.21]
[1741172608540,2.60087284,602.1,601.53,1.21]
[1741172608747,2.60087284,602.09,601.53,1.21]
[1741172609041,1.18224387,602.09,601.53,1.21]
[1741172609242,0.33216521,602.11,601.53,1.21]
[1741172610952,2.60035594,602.1,601.53,1.21]
[1741172611253,3.78248523,602.09,601.53,1.21]
[1741172611452,2.60035594,602.08,601.53,1.21]
[1741172611654,2.60035594,602.07,601.53,1.21]
[1741172611953,3.78248523,602.06,601.53,1.21]
[1741172612254,0.94676691,602.05,601.53,1.21]
[1741172612553,0.94676691,602.04,601.53,1.021]
[1741172612755,1.18212929,602.05,601.53,1.021]
[1741172612952,0.94661986,602.04,601.53,1.021]
[1741172613154,0.28911819,602.1,601.53,1.021]
[1741172613450,2.59983951,602.09,601.53,1.021]
[1741172613653,1.18174866,602.09,601.53,1.021]
[1741172614254,0.33216521,602.11,601.53,1.021]
[1741172616358,2.60086612,602.1,601.53,1.021]
[1741172616554,3.78320498,602.09,601.53,1.021]
[1741172616753,2.60086612,602.08,601.53,1.021]
[1741172616956,1.18233886,602.09,601.53,1.021]
[1741172616957,2.60086612,602.07,601.53,1.021]
[1741172617155,3.78320498,602.06,601.53,1.021]
[1741172617356,2.60086612,602.05,601.53,1.021]
[1741172617551,0.94708021,602.04,601.53,0.747]
[1741172617855,1.18233886,602.04,601.53,0.747]
[1741172618252,1.18233886,602.03,601.53,0.747]
[1741172618952,1.18233886,602.02,601.53,0.747]
[1741172619153,0.94738331,602.01,601.53,0.747]
[1741172619453,1.18233886,602.01,601.53,0.747]
[1741172619758,0.28914702,602.09,601.53,0.747]
[1741172619953,2.60240499,602.08,601.53,0.747]
[1741172620151,2.60240499,602.07,601.53,0.747]
[1741172620358,0.94753298,602.06,601.53,0.747]
[1741172620561,1.18297335,602.06,601.53,0.747]
[1741172621052,0.94776725,602.05,601.53,0.747]
[1741172621961,1.18297335,602.06,601.53,0.747]
[1741172622159,0.94809317,602.05,601.53,0.747]
[1741172622359,1.18297335,602.04,601.53,0.747]
[1741172622958,2.60494317,602.03,601.53,0.747]
[1741172623158,2.60494317,602.02,601.53,0.747]
[1741172623356,2.60494317,602.01,601.53,0.747]
[1741172623560,1.18297335,602.03,601.53,0.747]
[1741172623561,2.60494317,602.0,601.53,0.747]
[1741172623761,1.18297335,601.99,601.53,0.747]
[1741172624461,0.33216521,602.11,601.53,0.747]
[1741172624659,2.60701534,602.1,601.53,0.747]
[1741172624863,2.60700673,602.09,601.53,0.747]
[1741172625058,2.60700673,602.08,601.53,0.747]
[1741172625262,2.60700673,602.07,601.53,0.747]
[1741172625563,3.79203949,602.06,601.53,0.747]
[1741172625763,2.60700673,602.05,601.53,0.747]
[1741172625960,2.60700673,602.04,601.53,0.747]
[1741172626159,2.60700673,602.03,601.53,0.747]
[1741172626362,0.94919932,602.02,601.53,0.747]
[1741172626559,0.94919932,602.01,601.53,0.747]
[1741172626760,2.60997048,602.0,601.53,0.747]
[1741172626966,2.60997048,601.99,601.53,0.747]
[1741172627166,3.79500324,601.98,601.53,0.747]
[1741172627367,2.60997048,601.97,601.53,0.747]
[1741172627667,3.79500324,601.96,601.53,0.747]
[1741172627966,0.95030744,601.95,601.53,0.747]
[1741172628161,1.18503276,601.95,601.53,0.747]